[Event "ITT 1st Parada Jamundi 2022"]
[Site "Jamundi Valle"]
[Date "2022.12.09"]
[Round "7.2"]
[White "Avila Pavas, Santiago"]
[Black "Delgado Ramirez, Neuris"]
[Result "1-0"]
[ECO "C45"]
[WhiteElo "2461"]
[BlackElo "2572"]
[Annotator "TA"]
[PlyCount "125"]
[EventDate "2022.12.05"]
[EventType "swiss"]
[EventCountry "COL"]
[SourceTitle "playchess.com"]
[Source "ChessBase"]
[SourceQuality "1"]
[TimeControl "5400+30"]

{[%evp 12,125,26,23,58,56,52,42,49,40,50,54,56,27,24,35,27,52,28,27,33,0,0,0,0,-4,-12,-14,0,-27,-13,-14,0,-9,27,0,3,4,12,0,37,31,47,33,56,56,80,79,77,81,79,60,60,60,56,56,91,55,68,8,19,12,108,94,100,0,0,0,54,70,108,109,106,106,106,102,112,83,86,18,113,2,99,8,8,8,60,60,60,60,60,60,60,60,256,188,443,436,428,428,401,60,60,8,8,20,60,60,60,60,1207,1191,1136,1064,1158,902]} 1. e4 {[%emt 0:00:02]} e5 {[%emt 0:04:07]} 2. Nf3 {[%emt 0:00:13][%cal Bg1f3,Bf3d4,Bd4f5,Bf5g7,Bg7h5][%mdl 32]} Nc6 {[%emt 0:00:06]} 3. d4 {[%emt 0:00:13]} exd4 {[%emt 0:00:06]} 4. Nxd4 {[%emt 0:00:08]} Bb4+ {[%emt 0:00:04]} 5. c3 {[%emt 0:00:13]} Bc5 {[%emt 0:00:03]} 6. Be3 {[%emt 0:00:10]} Bb6 {[%emt 0:00:04]} 7. Nf5 {[%emt 0:00:19]} d5 {[%emt 0:01:00] C45: Scotch Game.} (7... g6 {simplifies} 8. Bxb6 axb6 9. Ne3 Nf6) 8. Nxg7+ {[%emt 0:01:55]} Kf8 {[%emt 0:00:46] And now ...Bxe3 would win.} 9. Bxb6 {[%emt 0:04:39]} (9. exd5 {simplifies} Kxg7 10. dxc6 Qxd1+ 11. Kxd1 bxc6 12. Bxb6 axb6 13. f3) 9... axb6 {[%emt 0:00:17] White is slightly better.} 10. Nh5 {[%emt 0:12:33]} Qh4 {[%emt 0:02:05] [#]} 11. Be2 $146 {[%emt 0:08:18]} (11. Qxd5 $2 {loses.} Ra5 12. Qd3 (12. Bb5 $2 Nge7 $19) 12... Qxh5 $19) ({Predecessor:} 11. Ng3 dxe4 12. Be2 Nf6 13. O-O Be6 14. Nd2 Qf4 15. Qc2 h5 16. Ndxe4 h4 17. Nxf6 Qxf6 {0-1 (67) Heredia Serrano,C (2121)-Berend,E (2329) Warsaw 2021}) 11... dxe4 {[%emt 0:03:48]} 12. O-O {[%emt 0:01:04]} (12. g3 $5 {[%cal Rg3h4]} Qe7 13. Qc1 $11) 12... Nf6 {[%emt 0:01:10]} 13. Nxf6 {[%emt 0:12:06]} Qxf6 {[%emt 0:01:52]} 14. Nd2 {[%emt 0:00:05]} Qf4 {[%emt 0:02:08][%cal Oc8h3]} 15. Nc4 {[%emt 0:07:23][%cal Bd2c4,Bc4a3,Ba3b5,Bb5d4][%mdl 32]} (15. Qc2 {simplifies} f5 16. Nc4 Be6 17. Ne3) 15... Rg8 {[%emt 0:03:23][%cal Bh8g8,Bg8g7,Bg7e7][%mdl 32]} 16. Qc1 {[%emt 0:01:14]} (16. Kh1 {feels hotter.} Be6 17. Ne3 Qh6 18. Bc4) 16... Qxc1 {[%emt 0:02:22]} 17. Rfxc1 {[%emt 0:00:06]} Be6 {[%emt 0:00:56]} 18. Re1 {[%emt 0:10:35]} f5 {[%emt 0:01:24]} 19. Na3 {[%emt 0:03:40]} Ne5 {[%emt 0:02:25]} 20. Nb5 {[%emt 0:00:31]} Rg7 {[%emt 0:22:56]} 21. Nd4 {[%emt 0:00:54] Against f4} Bd7 {[%emt 0:01:39] Threatening ...c5.} 22. f4 $1 {[%emt 0:00:07] Against c5} exf3 {[%emt 0:02:47]} 23. Bxf3 {[%emt 0:07:51]} Nxf3+ {[%emt 0:02:00]} 24. Nxf3 {[%emt 0:00:01]} Bc6 {[%emt 0:00:41]} 25. Kf2 {[%emt 0:07:28]} Re7 {[%emt 0:11:19]} 26. a3 {[%emt 0:04:30]} Bxf3 {[%emt 0:07:41]} 27. Kxf3 $14 {[%emt 0:00:08][%mdl 4096] Endgame KRR-KRR} Rd8 {[%emt 0:00:06]} 28. Rad1 {[%emt 0:00:52] Prevents Rd3+.} Rxd1 {[%emt 0:00:03]} 29. Rxd1 {[%emt 0:00:08] KR-KR} Kf7 {[%emt 0:00:03]} 30. Rd8 {[%emt 0:04:08]} Kf6 {[%emt 0:01:34]} 31. Rb8 {[%emt 0:00:29]} c6 {[%emt 0:00:03]} 32. a4 {[%emt 0:02:42]} Rd7 {[%emt 0:07:37]} 33. Kf4 {[%emt 0:00:20]} Ke6 {[%emt 0:00:56]} 34. Re8+ {[%emt 0:02:12]} Kf7 {[%emt 0:01:55]} 35. Re5 {[%emt 0:04:07]} (35. Rh8 $14 Kg6 36. Rb8) 35... Rd2 $11 {[%emt 0:00:24][%csl LRb2,LRg2]} 36. Rxf5+ {[%emt 0:00:06]} Kg6 {[%emt 0:01:14]} (36... Ke6 $1 $11 {keeps the balance.} 37. Rh5 Rxg2) 37. Rg5+ $16 {[%emt 0:01:51]} Kf6 {[%emt 0:00:05]} 38. Rf5+ {[%emt 0:03:31]} ({Better is} 38. b4 $1 $16) 38... Kg6 $11 {[%emt 0:00:06]} 39. Rg5+ {[%emt 0:00:03]} (39. Ke3 $11) 39... Kf6 $1 $14 {[%emt 0:00:16]} ({Don't do} 39... Kh6 40. b4 $16) 40. b4 $1 {[%emt 0:00:44]} Rf2+ {[%emt 0:00:59]} 41. Ke3 {[%emt 0:00:01]} Ra2 {[%emt 0:03:11]} 42. Rg8 {[%emt 0:00:13] Rb8 is the strong threat.} Rxa4 {[%emt 0:02:30]} 43. Rb8 {[%emt 0:00:05]} Ra7 {[%emt 0:00:08]} 44. Kd4 {[%emt 0:00:46]} h5 {[%emt 0:00:49]} 45. h4 {[%emt 0:02:18]} (45. g3 $16) 45... b5 {[%emt 0:04:42]} (45... Kf5 $1 $11) 46. Rg8 {[%emt 0:01:45]} (46. g3 $16) 46... b6 {[%emt 0:04:34]} (46... Ra1 $11) 47. Rb8 {[%emt 0:00:04]} (47. Rh8 $16) 47... Rd7+ $11 {[%emt 0:01:57]} 48. Ke4 {[%emt 0:00:06]} Rg7 {[%emt 0:00:09]} ({Black should try} 48... Re7+ $1 $11 49. Kd3 Rd7+ 50. Kc2 Kf5) 49. Rxb6 $14 {[%emt 0:00:43]} Rg4+ {[%emt 0:00:03]} 50. Kd3 $1 {[%emt 0:00:15]} Rc4 {[%emt 0:00:05]} (50... Rg3+ $2 51. Kd4 $18) 51. g3 $1 {[%emt 0:01:09]} Ke6 {[%emt 0:02:45]} 52. Kc2 {[%emt 0:00:41]} Kf5 $2 {[%emt 0:01:50]} (52... Kd6 $14) 53. Rb8 $18 {[%emt 0:00:04] Threatens to win with Rh8.} Rg4 $2 {[%emt 0:00:33]} (53... Ke6 54. Rg8 c5) 54. Rh8 $1 {[%emt 0:01:04]} Rxg3 {[%emt 0:01:09]} 55. Rxh5+ {[%emt 0:00:02]} Ke4 {[%emt 0:00:29] [#]} 56. Rg5 $2 {[%emt 0:00:37]} (56. Rc5 $1 $18 {[%cal Rc5c6]}) 56... Rh3 $14 {[%emt 0:00:23]} 57. h5 {[%emt 0:00:26]} (57. Rc5 $14 Rxh4 58. Rxc6) 57... Rh2+ $11 {[%emt 0:00:21]} 58. Kb3 {[%emt 0:00:16]} Kf4 {[%emt 0:00:48]} 59. Rc5 {[%emt 0:00:21]} Ke4 $1 {[%emt 0:00:02]} 60. Ka3 {[%emt 0:00:42]} Kd3 $2 {[%emt 0:00:52][%mdl 8192]} (60... Rh3 $14) 61. Rxc6 $18 {[%emt 0:01:08] White is clearly winning.} Rxh5 {[%emt 0:00:28] [#]} 62. Rc5 $1 {[%emt 0:00:09]} Rh1 {[%emt 0:00:11]} 63. Kb2 $1 {[%emt 0:01:26] Weighted Error Value: White=0.27 (precise) /Black=0.28 (precise)} ({Stronger than} 63. Rxb5 Kc2 64. Ka2 Kxc3 $11) 1-0

[Event "ITT 1st Parada Jamundi 2022"]
[Site "Jamundi Valle"]
[Date "2022.12.09"]
[Round "7.3"]
[White "Mirzoev, Azer"]
[Black "Cardoso Cardoso, Jose Gabriel"]
[Result "1/2-1/2"]
[ECO "D38"]
[WhiteElo "2462"]
[BlackElo "2483"]
[Annotator "TA"]
[PlyCount "46"]
[EventDate "2022.12.05"]
[EventType "swiss"]
[EventCountry "COL"]
[SourceTitle "playchess.com"]
[Source "ChessBase"]
[SourceQuality "1"]
[TimeControl "5400+30"]

{[%evp 19,46,2,25,14,24,9,13,6,0,0,16,0,13,0,14,13,24,18,16,8,14,0,10,17,19,18,30,25,34]} 1. d4 {[%emt 0:03:46]} Nf6 {[%emt 0:00:26]} 2. Nf3 {[%emt 0:00:04]} d5 {[%emt 0:00:20]} 3. c4 {[%emt 0:00:16]} e6 {[%emt 0:00:14]} 4. Nc3 {[%emt 0:00:41]} Bb4 {[%emt 0:00:58]} 5. cxd5 {[%emt 0:00:32]} exd5 {[%emt 0:00:09]} 6. Qa4+ {[%emt 0:00:09]} Nc6 {[%emt 0:00:09]} 7. Bg5 {[%emt 0:00:14]} h6 {[%emt 0:02:16]} 8. Bxf6 {[%emt 0:00:04]} Qxf6 {[%emt 0:00:03]} 9. e3 {[%emt 0:00:09]} O-O {[%emt 0:06:44]} 10. Be2 {[%emt 0:00:09]} Be6 {[%emt 0:02:45]} 11. a3 {[%emt 0:00:27] D38: Queen's Gambit Declined: Ragozin Defence (4 Nf3 Bb4).} Bd6 {[%emt 0:10:46] 11...Bxc3+ is more fashionable.} (11... Bxc3+ {simplifies} 12. bxc3 Bd7 13. Qb3 Qf5) 12. Nb5 {[%emt 0:00:59]} Bg4 {[%emt 0:00:43]} 13. O-O {[%emt 0:07:17] The position is equal.} a6 {[%emt 0:01:47]} 14. Nxd6 {[%emt 0:00:13]} Qxd6 {[%emt 0:00:04]} 15. Rac1 {[%emt 0:03:48] [#]} (15. h3 $5 {[%cal Rh3g4]} Bxf3 16. Bxf3 $11) 15... Nd8 $146 {[%emt 0:03:38]} ({Predecessor:} 15... f5 16. Qb3 Rab8 17. Rc5 Ne7 18. g3 c6 19. Rc2 Bxf3 20. Bxf3 Kh7 21. Qd3 g5 22. b4 Kg7 23. Rb1 b5 24. Qc3 Rb6 {½-½ (24) Cyborowski,L (2479)-Cukrowski,F (2404) Sypniewo 2022}) 16. Qb3 {[%emt 0:07:34]} Rb8 {[%emt 0:01:55]} 17. Qc2 {[%emt 0:06:24]} Bxf3 {[%emt 0:03:43]} 18. Bxf3 {[%emt 0:00:21]} c6 {[%emt 0:00:37]} 19. g3 {[%emt 0:01:48]} Ne6 {[%emt 0:01:28]} 20. Bg2 {[%emt 0:00:05]} g6 {[%emt 0:01:03]} 21. b4 {[%emt 0:00:13]} h5 {[%emt 0:01:29]} 22. h4 {[%emt 0:01:11]} Kg7 {[%emt 0:00:55]} 23. Rb1 {[%emt 0:01:27]} Rh8 {[%emt 0:05:01] An even fight not without its subleties.   Weighted Error Value: White=0.06 (flawless) /Black=0.08 (flawless)} 1/2-1/2

[Event "ITT 1st Parada Jamundi 2022"]
[Site "Jamundi Valle"]
[Date "2022.12.09"]
[Round "7.4"]
[White "Aguero Jimenez, Luis Lazaro"]
[Black "Zuluaga Mancilla, Cesar"]
[Result "1-0"]
[ECO "D46"]
[WhiteElo "2465"]
[BlackElo "2230"]
[Annotator "TA"]
[PlyCount "100"]
[EventDate "2022.12.05"]
[EventType "swiss"]
[EventCountry "COL"]
[SourceTitle "playchess.com"]
[Source "ChessBase"]
[SourceQuality "1"]
[TimeControl "5400+30"]

{[%evp 22,100,61,42,39,32,43,38,57,49,59,72,62,70,91,90,91,91,77,79,77,81,76,53,105,105,109,104,100,77,97,92,103,85,192,180,178,177,170,183,206,207,250,251,356,358,350,316,287,266,348,348,426,422,321,310,429,429,417,364,408,382,552,507,637,693,685,685,690,633,861,806,841,801,825,783,819,813,933,906,29980]} 1. Nf3 {[%emt 0:00:02]} d5 {[%emt 0:05:22]} 2. c4 {[%emt 0:00:06]} c6 {[%emt 0:01:02]} 3. d4 {[%emt 0:00:06]} Nf6 {[%emt 0:00:23]} 4. Nc3 {[%emt 0:00:03]} e6 {[%emt 0:01:52]} 5. e3 {[%emt 0:00:18]} Nbd7 {[%emt 0:00:47]} 6. Bd3 {[%emt 0:00:04]} Be7 {[%emt 0:04:22]} 7. O-O {[%emt 0:00:08]} O-O {[%emt 0:06:23]} 8. e4 {[%emt 0:00:22]} dxe4 {[%emt 0:05:31]} 9. Nxe4 {[%emt 0:00:06]} Nxe4 {[%emt 0:00:10]} 10. Bxe4 {[%emt 0:00:04]} Nf6 {[%emt 0:00:10]} 11. Bc2 {[%emt 0:00:31]} c5 {[%emt 0:04:15]} 12. Qd3 {[%emt 0:10:48]} cxd4 {[%emt 0:09:10][%cal Ob7b5] D46: Semi-Slav: 5 e3 Nbd7 6 Bd3, Black avoids the Meran.} 13. Bg5 {[%emt 0:00:36][%cal Og5f6] Prevents b5. Bxf6! is the strong threat.} ({Don't play} 13. Qxd4 Qxd4 14. Nxd4 Rd8 $15) 13... g6 {[%emt 0:00:10][%cal Ob7b5]} 14. Rad1 {[%emt 0:03:02][%cal Of1e1]} Nh5 {[%emt 0:13:55] White is slightly better.} 15. Bh6 {[%emt 0:02:12]} (15. Bxe7 {simplifies} Qxe7 16. Qxd4 f6 17. Qd6) 15... Ng7 {[%emt 0:07:14][%cal Oe6e5] [#]} 16. Nxd4 $146 {[%emt 0:35:28]} ({Predecessor:} 16. Qxd4 Qxd4 17. Nxd4 e5 18. Nb5 Bg4 19. f3 Bc5+ 20. Kh1 Be6 21. b3 Rac8 22. Be4 {1-0 (38) Straub,N (2382)-Wang,Y (2378) Moscow 2001}) 16... e5 {[%emt 0:01:37] [#]} 17. Qc3 {[%emt 0:00:32][%cal Od4e6]} exd4 {[%emt 0:10:09]} (17... Qb6 18. Nb5) 18. Rxd4 {[%emt 0:00:06]} Bf6 {[%emt 0:00:07]} 19. Rxd8 {[%emt 0:00:03][%mdl 64] Pin. White is much more active. The black rooks are badly placed.} Bxc3 {[%emt 0:00:06]} 20. Rxf8+ {[%emt 0:00:08]} Kxf8 {[%emt 0:00:10]} 21. bxc3 {[%emt 0:00:01]} Be6 {[%emt 0:00:08]} 22. Rb1 {[%emt 0:05:51]} b6 {[%emt 0:00:43] White now steadily converts the win.} ({Black should try} 22... Bxc4 $14 23. Rxb7 Bxa2) 23. c5 $16 {[%emt 0:00:41]} bxc5 {[%emt 0:00:16]} 24. a4 {[%emt 0:00:23]} Kg8 {[%emt 0:03:06]} 25. Bf4 {[%emt 0:12:37]} Bc4 {[%emt 0:01:15]} 26. Bb8 {[%emt 0:02:38] Threatens to win with Be4.} Bd5 {[%emt 0:01:02] Prevents Be4.} 27. a5 {[%emt 0:07:32]} a6 {[%emt 0:01:17]} (27... Ne6 $16) 28. Rb6 {[%emt 0:02:09]} c4 {[%emt 0:04:07]} 29. f3 {[%emt 0:01:30]} Ne6 {[%emt 0:00:18]} 30. Bd6 {[%emt 0:01:09] Prevents Nc5.} h5 {[%emt 0:03:25]} 31. h4 {[%emt 0:00:55]} Kg7 {[%emt 0:00:28]} 32. Kf2 {[%emt 0:00:35]} Kg8 {[%emt 0:04:19]} (32... f6 $142 33. Ke3 Re8) 33. Ke3 $18 {[%emt 0:00:27]} f5 {[%emt 0:02:20]} 34. Ba4 {[%emt 0:00:32]} Kf7 {[%emt 0:00:52]} 35. g3 {[%emt 0:03:52]} Ra7 {[%emt 0:00:54]} 36. f4 {[%emt 0:02:20]} Ra8 {[%emt 0:02:06]} 37. Bc6 {[%emt 0:00:43]} Bxc6 {[%emt 0:00:08]} 38. Rxc6 {[%emt 0:00:03][%mdl 4096] Endgame KRB-KRN} Ra7 {[%emt 0:06:44]} 39. Rxc4 {[%emt 0:00:54]} Ke8 {[%emt 0:00:15]} 40. Be5 {[%emt 0:00:24]} Kd7 {[%emt 0:00:47]} 41. Rb4 {[%emt 0:00:28] Prevents Rb7.} Nd8 {[%emt 0:00:24]} (41... Nc5 $142 42. Rb6 Ra8 43. Rxg6 Nb3 44. Rd6+ Ke7) 42. Rd4+ {[%emt 0:00:36] White is clearly winning.} Ke7 {[%emt 0:01:20] [#]} 43. Bf6+ $1 {[%emt 0:01:02][%mdl 512]} Kxf6 {[%emt 0:00:04]} 44. Rxd8 {[%emt 0:00:03] KR-KR} Ke7 {[%emt 0:01:02]} 45. Rb8 {[%emt 0:01:04]} Rc7 {[%emt 0:01:57]} 46. Kd4 {[%emt 0:00:08]} Rd7+ {[%emt 0:00:19]} 47. Kc4 {[%emt 0:00:06]} Rc7+ {[%emt 0:00:38]} 48. Kb4 {[%emt 0:00:08]} Kd6 {[%emt 0:01:21]} 49. c4 {[%emt 0:00:51]} Rc6 {[%emt 0:00:00]} 50. Rb6 {[%emt 0:00:36] c5+ would kill now.} Kc7 {[%emt 0:01:00] Weighted Error Value: White=0.06 (flawless) /Black=0.32} 1-0

[Event "ITT 1st Parada Jamundi 2022"]
[Site "Jamundi Valle"]
[Date "2022.12.09"]
[Round "7.5"]
[White "Paredes Lagos, Anthony Javier"]
[Black "Rios, Cristhian Camilo"]
[Result "0-1"]
[ECO "B33"]
[WhiteElo "2230"]
[BlackElo "2456"]
[Annotator "TA"]
[PlyCount "80"]
[EventDate "2022.12.05"]
[EventType "swiss"]
[EventCountry "COL"]
[SourceTitle "playchess.com"]
[Source "ChessBase"]
[SourceQuality "1"]
[TimeControl "5400+30"]

{[%evp 25,80,9,12,0,12,0,45,12,11,0,0,0,18,4,14,0,0,0,-13,0,0,0,1,11,78,-8,-18,-15,-5,-193,-195,-194,-189,-218,-208,-547,-547,-287,-534,-539,-510,-505,-468,-531,-501,-742,-742,-698,-643,-746,-741,-600,-514,-569,-590,-5527,-5509]} 1. e4 {[%emt 0:08:18]} c5 {[%emt 0:00:12]} 2. Nf3 {[%emt 0:00:39]} Nc6 {[%emt 0:00:09]} 3. d4 {[%emt 0:00:03]} cxd4 {[%emt 0:00:10]} 4. Nxd4 {[%emt 0:00:06]} Nf6 {[%emt 0:00:07]} 5. Nc3 {[%emt 0:00:04]} e5 {[%emt 0:00:07]} 6. Ndb5 {[%emt 0:00:02]} d6 {[%emt 0:00:12]} 7. Nd5 {[%emt 0:00:02]} Nxd5 {[%emt 0:00:07]} 8. exd5 {[%emt 0:00:04]} Nb8 {[%emt 0:00:08]} 9. c4 {[%emt 0:00:06]} a6 {[%emt 0:00:02]} 10. Nc3 {[%emt 0:00:04]} Be7 {[%emt 0:00:14]} 11. Bd3 {[%emt 0:00:07]} O-O {[%emt 0:00:19]} 12. O-O {[%emt 0:00:05]} f5 {[%emt 0:00:12]} 13. f3 {[%emt 0:00:04][%cal Bf2f3,Bf3e4][%mdl 32]} Nd7 {[%emt 0:00:06] 13...Bg5 is not played anymore.} 14. Kh1 {[%emt 0:00:05] B33: Sicilian: Pelikan and Sveshnikov Variations.} Bg5 {[%emt 0:00:04]} 15. b4 {[%emt 0:00:10]} a5 {[%emt 0:00:06]} 16. a3 {[%emt 0:03:58] White is slightly better.} e4 {[%emt 0:00:08]} 17. Bxg5 {[%emt 0:00:21]} Qxg5 {[%emt 0:00:08]} 18. fxe4 {[%emt 0:00:16]} axb4 {[%emt 0:00:08]} (18... Ne5 $5 {[%cal Rg5e3]} 19. Be2 Rf6 $16) 19. axb4 {[%emt 0:00:05]} Rxa1 {[%emt 0:00:05]} 20. Qxa1 {[%emt 0:00:03]} Qe3 $1 {[%emt 0:00:04]} 21. Rd1 {[%emt 0:10:10]} Ne5 {[%emt 0:05:19][%mdl 64] Deflection} 22. Be2 {[%emt 0:03:18]} fxe4 {[%emt 0:00:08] And now ...Nd3 would win.} 23. Qc1 {[%emt 0:00:56]} Qb6 {[%emt 0:00:25]} 24. Nxe4 {[%emt 0:06:09] Strongly threatening Qc3.} Qxb4 {[%emt 0:00:51] [#]} (24... Bg4 $1 $11 25. Bxg4 Nxg4) 25. Rf1 $146 {[%emt 0:00:30]} ({White should try} 25. Qa1 $1 $16 {Rb1 is the strong threat.} b5 26. Rb1) ({Predecessor:} 25. Qa1 Qb3 26. Nxd6 Bg4 27. Re1 Qb4 28. Bxg4 Nxg4 29. Re7 Qc3 30. Re1 Qb4 31. Ne8 Rf7 32. h3 Nf2+ 33. Kh2 Qxc4 34. Nxg7 Qc7+ 35. g3 {1-0 (35) Petrov,M (2430)-Markovic,Z (2370) Vrnjacka Banja 2006}) 25... Rxf1+ $11 {[%emt 0:02:55]} 26. Bxf1 {[%emt 0:03:36]} ({Reject} 26. Qxf1 b5 27. Ng5 bxc4 $17) 26... Bf5 {[%emt 0:00:25]} 27. Qf4 {[%emt 0:22:29] [#] Loses the game.} (27. Ng5 $11) 27... Bxe4 $1 $19 {[%emt 0:11:12]} 28. Qxe4 {[%emt 0:00:11][%mdl 4096] Endgame [#] KQB-KQN} b5 $1 {[%emt 0:00:14][%cal Rb5c4]} 29. Qf5 {[%emt 0:00:13]} bxc4 {[%emt 0:02:09]} 30. Bxc4 {[%emt 0:11:51]} (30. Qc8+ {is a better chance.} Kf7 31. Qf5+ Ke8 32. Qe6+ Kd8 33. Qg8+ Kc7 34. Qxg7+ Kb6 35. Qf8) 30... Nxc4 {[%emt 0:01:57]} 31. Qc8+ {[%emt 0:00:59]} Kf7 {[%emt 0:00:08][%cal Rb4e1]} 32. Qd7+ {[%emt 0:00:10] Black is clearly winning.} Kg6 {[%emt 0:00:25][%cal Rb4b1]} 33. Qg4+ {[%emt 0:08:27]} Kf6 {[%emt 0:00:12][%cal Rb4e1]} 34. Qe6+ {[%emt 0:00:36]} Kg5 {[%emt 1:18:22]} 35. Qe7+ {[%emt 0:05:10]} Kf4 {[%emt 0:00:00]} 36. h3 {[%emt 0:00:42]} Qb1+ {[%emt 0:00:00]} 37. Kh2 {[%emt 0:00:03]} Qe4 {[%emt 0:00:00]} 38. Qxg7 {[%emt 0:01:00]} Ke3 {[%emt 0:00:00]} 39. Kg1 {[%emt 0:02:51]} Kd3 {[%emt 0:00:00] ( -> ...Qe3+)} 40. Qa1 {[%emt 0:04:01]} Qd4+ {[%emt 0:00:00] Weighted Error Value: White=0.67/Black=0.07 (flawless)} 0-1